bitfinex/quotes_SOLUSD_20241022
["timestamp","ask_amount","ask_price","bid_price","bid_amount"]
[1729606564569,0.6262297,168.84,168.79,70.0]
[1729606564765,0.6262297,168.84,168.79,23.776884]
[1729606564981,0.6262297,168.84,168.79,93.776884]
[1729606565192,0.6262297,168.84,168.79,23.776884]
[1729606565492,0.6262297,168.84,168.81,96.98015838]
[1729606565975,0.6262297,168.84,168.81,26.98015838]
[1729606566177,0.6262297,168.84,168.81,70.0]
[1729606566698,0.6262297,168.84,168.8,1.1844077]
[1729606566989,0.6262297,168.84,168.79,23.776884]
[1729606566990,0.6262297,168.84,168.78,26.98015838]
[1729606567195,0.6262297,168.84,168.76,70.0]
[1729606568095,0.6262297,168.84,168.77,23.776884]
[1729606568298,0.6262297,168.84,168.78,71.1844874]
[1729606568680,0.6262297,168.84,168.79,23.776884]
[1729606568991,0.6262297,168.84,168.71,70.0]
[1729606569191,0.6262297,168.84,168.72,70.0]
[1729606569389,5.9239,168.81,168.72,70.0]
[1729606569573,0.6262297,168.84,168.74,70.0]
[1729606569768,6.5491297,168.84,168.72,96.98015838]
[1729606569981,0.6262297,168.84,168.7,92.0686]
[1729606570325,0.6262297,168.84,168.72,70.0]
[1729606570595,0.6262297,168.84,168.74,70.0]
[1729606570889,0.6262297,168.84,168.76,70.0]
[1729606571477,6.5490297,168.84,168.74,70.0]
[1729606571991,0.6262297,168.84,168.7,92.0686]
[1729606572192,5.9242,168.8,168.7,92.0686]
[1729606572569,5.9251,168.78,168.68,70.0]
[1729606572773,5.9259,168.75,168.66,70.0]
[1729606573001,16.5379,168.8,168.68,70.0]
[1729606573298,5.9265,168.74,168.63,96.98015838]
[1729606573600,5.9259,168.75,168.63,96.98015838]
[1729606573894,6.4263,168.73,168.62,2.02976468]
[1729606574106,6.4263,168.73,168.64,70.0]
[1729606574304,5.9252,168.77,168.65,8.43067464]
[1729606574604,5.9256,168.76,168.65,8.43067464]
[1729606575101,5.9256,168.76,168.63,26.98015838]
[1729606575102,5.9257,168.76,168.63,96.98015838]
[1729606575319,6.4263,168.79,168.69,70.0]
[1729606575600,6.4263,168.79,168.7,8.43067464]
[1729606575978,6.5263,168.79,168.64,26.98015838]
[1729606576180,5.9252,168.78,168.65,70.0]
[1729606576390,5.9252,168.77,168.65,70.0]
[1729606576612,6.4263,168.79,168.64,26.98015838]
[1729606576790,6.4263,168.79,168.63,70.0]
[1729606576995,5.9254,168.77,168.63,70.0]
[1729606577189,5.9258,168.76,168.63,70.0]
[1729606577590,5.9252,168.77,168.66,70.0]
[1729606577994,6.4263,168.79,168.66,70.0]
[1729606578201,12.3508,168.79,168.66,70.0]
[1729606578402,12.3508,168.79,168.67,32.20755864]
[1729606578783,6.4263,168.79,168.67,32.20755864]
[1729606579102,6.4263,168.79,168.7,70.0]
[1729606579304,6.4263,168.79,168.69,23.776884]
[1729606579619,12.3508,168.79,168.68,70.0]
[1729606579905,12.3508,168.79,168.06,0.35]
[1729606579906,5.9253,168.77,168.64,96.98015838]
[1729606580215,5.9259,168.76,168.64,96.98015838]
[1729606580385,6.4263,168.79,168.64,96.98015838]
[1729606580386,5.9252,168.77,168.64,96.98015838]
[1729606580705,6.4263,168.79,168.66,70.0]
[1729606580882,5.9249,168.78,168.66,70.0]
[1729606581079,6.4263,168.79,168.69,23.776884]
[1729606581286,5.9235,168.82,168.7,26.98015838]
[1729606581510,5.9239,168.81,168.71,93.776884]
[1729606582023,12.53993822,168.83,168.7,23.776884]
[1729606582024,5.9243,168.8,168.7,23.776884]
[1729606582321,5.9257,168.76,168.66,70.0]
[1729606582727,5.9255,168.77,168.66,70.0]
[1729606583020,14.8095,168.81,168.66,70.0]
[1729606583225,5.9254,168.77,168.66,70.0]
[1729606583915,14.8095,168.81,168.66,70.0]
[1729606584116,5.9244,168.8,168.68,70.0]
[1729606584422,12.53993822,168.83,168.68,70.0]
[1729606584605,5.9242,168.8,168.68,70.0]
[1729606585207,5.9242,168.8,168.69,23.776884]
[1729606585722,5.9238,168.81,168.69,23.776884]
[1729606586307,20.0,168.82,168.67,26.98015838]
[1729606586519,5.9254,168.77,168.66,70.0]
[1729606586721,5.9257,168.76,168.64,103.33835838]
[1729606586923,0.1,168.8,168.64,33.33835838]
[1729606587217,5.9259,168.75,168.64,33.33835838]
[1729606587407,5.9259,168.75,168.64,103.33835838]
[1729606587604,5.9255,168.76,168.64,103.33835838]
[1729606588514,5.9255,168.76,168.64,33.33835838]
[1729606588717,5.9255,168.76,168.64,103.33835838]
[1729606589314,20.0,168.82,168.65,23.776884]
[1729606589631,5.9234,168.82,168.7,70.0]
[1729606589934,6.18692076,168.82,168.72,70.0]
[1729606590229,6.3527,168.83,168.73,32.20755864]
[1729606590533,6.3527,168.83,168.74,70.0]
[1729606590828,0.6262297,168.84,168.74,96.98015838]
[1729606592427,0.6262297,168.84,168.76,70.0]
[1729606592928,0.6262297,168.84,168.79,70.0]
[1729606593113,0.6262297,168.84,168.77,120.75704238]
[1729606593304,0.6262297,168.84,168.76,70.0]
[1729606593731,0.6262297,168.84,168.78,70.0]
[1729606594230,0.6262297,168.84,168.77,26.98015838]
[1729606594410,0.6262297,168.84,168.78,70.0]
[1729606594609,0.6262297,168.84,168.78,71.1845876]
[1729606595307,0.6262297,168.84,168.79,23.776884]
[1729606595510,0.6262297,168.84,168.8,70.0]
[1729606595911,0.6262297,168.84,168.78,70.0]
[1729606596124,0.6262297,168.84,168.77,23.776884]
[1729606596433,0.6262297,168.84,168.74,26.98015838]
[1729606596736,5.9246,168.79,168.69,6.1375]
[1729606596913,5.9243,168.8,168.69,6.1375]
[1729606597112,6.3166,168.83,168.66,15.3356]
[1729606597113,20.0,168.82,168.66,85.3356]
[1729606597345,0.6262297,168.84,168.74,70.0]
[1729606597631,0.6262297,168.84,168.76,96.98015838]
[1729606597809,0.6262297,168.84,168.78,70.0]
[1729606598009,0.6262297,168.84,168.79,1.18435432]
[1729606598209,0.6262297,168.84,168.73,26.98015838]
[1729606598210,5.9241,168.8,168.69,70.0]
[1729606598428,5.9241,168.8,168.69,96.98015838]
[1729606598739,0.6262297,168.84,168.69,96.98015838]
[1729606598740,0.7262297,168.84,168.69,70.0]
[1729606598911,0.6262297,168.84,168.69,70.0]
[1729606599233,5.9235,168.82,168.69,96.98015838]
[1729606599414,0.6262297,168.84,168.74,70.0]
[1729606599923,5.9237,168.82,168.72,26.98015838]
[1729606600128,5.9237,168.82,168.72,23.776884]
[1729606600310,0.6262297,168.84,168.74,70.0]
[1729606601319,0.6262297,168.84,168.72,93.776884]
[1729606601737,5.9236,168.82,168.71,23.776884]
[1729606602613,0.6262297,168.84,168.7,70.0]
[1729606602824,5.9239,168.81,168.7,70.0]
[1729606603129,0.6262297,168.84,168.68,70.0]
[1729606603335,0.6262297,168.84,168.66,119.90695838]
[1729606603336,5.9259,168.76,168.66,119.90695838]
[1729606603513,6.1909,168.83,168.69,70.0]
[1729606603947,5.9242,168.8,168.69,70.0]
[1729606605226,5.9245,168.79,168.69,70.0]
[1729606605418,6.1909,168.83,168.68,23.776884]
[1729606605633,5.9247,168.79,168.68,23.776884]
[1729606606034,0.1,168.82,168.67,26.98015838]
[1729606606333,5.9255,168.77,168.66,22.9268]
[1729606606632,6.1909,168.83,168.67,96.98015838]
[1729606606849,0.6262297,168.84,168.74,70.0]
[1729606607138,0.6262297,168.84,168.73,46.98015838]
[1729606607139,0.6262297,168.84,168.76,70.0]
[1729606607319,6.5490297,168.84,168.74,23.776884]
[1729606607521,0.6262297,168.84,168.74,23.776884]
[1729606607927,0.6262297,168.84,168.74,70.0]
[1729606608139,6.5491297,168.84,168.75,23.776884]
[1729606608333,0.6262297,168.84,168.75,23.776884]
[1729606609038,0.6262297,168.84,168.76,70.0]
[1729606609342,0.6262297,168.84,168.78,70.0]
[1729606610324,0.6262297,168.84,168.79,23.776884]
[1729606610732,0.6262297,168.84,168.77,40.260884]
[1729606611033,0.6262297,168.84,168.73,26.98015838]
[1729606611238,5.9242,168.8,168.72,15.0788]
[1729606611419,6.6153,168.83,168.72,85.0788]
[1729606611618,0.6262297,168.84,168.77,70.0]
[1729606612140,0.6262297,168.84,168.73,26.98015838]
[1729606612320,5.9234,168.83,168.72,15.0788]
[1729606612727,5.9234,168.83,168.73,70.0]
[1729606612921,0.6262297,168.84,168.76,70.0]
[1729606613227,0.6262297,168.84,168.74,93.776884]
[1729606613443,0.6262297,168.84,168.72,85.0788]
[1729606613643,5.9233,168.83,168.72,85.0788]
[1729606614422,0.6262297,168.84,168.72,85.0788]
[1729606614624,5.9231,168.83,168.73,23.776884]
[1729606615940,0.6262297,168.84,168.73,23.776884]
[1729606616146,5.9245,168.79,168.72,15.0788]
[1729606616443,15.4331297,168.84,168.72,15.0788]
[1729606616444,6.5492297,168.84,168.72,15.0788]
[1729606616625,5.9239,168.81,168.72,15.0788]
[1729606617026,5.9242,168.8,168.72,15.0788]
[1729606619241,0.6262297,168.84,168.73,23.776884]
[1729606619546,6.5474,168.79,168.64,71.95115102]
[1729606619848,5.926,168.75,168.65,14.72]
[1729606620021,5.9263,168.74,168.64,70.0]
[1729606620221,5.9263,168.74,168.62,70.0]
[1729606620422,5.9262,168.74,168.63,1.48272494]
[1729606620754,5.9262,168.74,168.63,21.48272494]
[1729606620938,6.5474,168.79,168.66,20.0]
[1729606621119,5.9248,168.78,168.68,20.0]
[1729606621628,6.5474,168.79,168.66,20.0]
[1729606622030,5.9259,168.75,168.66,20.0]
[1729606622439,5.9254,168.77,168.66,20.0]
[1729606623143,12.4719,168.79,168.69,70.0]
[1729606623628,20.98989139,168.82,168.69,70.0]
[1729606623629,6.18049139,168.82,168.73,70.0]
[1729606623834,0.6262297,168.84,168.78,70.0]
[1729606624246,0.6262297,168.84,168.76,71.94147145]
[1729606624247,0.6262297,168.84,168.76,26.98015838]
[1729606624542,0.6262297,168.84,168.75,43.776884]
[1729606624741,0.6262297,168.84,168.71,70.0]
[1729606624944,5.9234,168.82,168.72,23.776884]
[1729606625152,0.6262297,168.84,168.7,26.98015838]
[1729606625326,0.6262297,168.84,168.7,20.0]
[1729606625523,0.1,168.83,168.66,70.0]
[1729606625735,5.9253,168.77,168.67,1.48248068]
[1729606625937,6.5489297,168.84,168.73,70.0]
[1729606626118,0.6262297,168.84,168.71,70.0]
[1729606626323,5.9231,168.83,168.71,70.0]
[1729606626531,5.9236,168.82,168.71,70.0]
[1729606626935,0.6262297,168.84,168.71,70.0]
[1729606627143,5.9244,168.8,168.71,20.0]
[1729606627454,5.9244,168.8,168.7,26.98015838]
[1729606627947,5.925,168.78,168.68,20.0]
[1729606628147,5.9245,168.79,168.68,20.0]
[1729606628322,5.9242,168.8,168.69,1.48246896]
[1729606628520,15.4333297,168.84,168.69,1.48246896]
[1729606628521,0.1,168.82,168.69,1.48246896]
[1729606628742,6.3064,168.81,168.67,26.98015838]
[1729606629049,5.9251,168.78,168.68,1.48257135]
[1729606629637,5.9241,168.8,168.67,26.98015838]
[1729606629841,5.9255,168.77,168.67,26.98015838]
[1729606630050,21.1159,168.81,168.64,22.7686]
[1729606630051,6.3064,168.81,168.7,26.98015838]
[1729606630457,6.3064,168.81,168.68,43.776884]
[1729606630458,5.9252,168.77,168.68,43.776884]
[1729606630626,6.3064,168.81,168.62,8.22469045]
[1729606630627,0.1,168.78,168.62,8.22469045]
[1729606630829,5.9266,168.74,168.63,1.48257097]
[1729606631046,5.9266,168.74,168.62,8.22469045]
[1729606631047,15.1013,168.8,168.65,70.0]
[1729606631240,5.9248,168.79,168.67,26.98015838]
[1729606631445,15.1013,168.8,168.67,96.98015838]
[1729606631751,6.3064,168.81,168.73,26.98015838]
[1729606631931,6.3064,168.85,168.74,70.0]
[1729606632238,6.5491297,168.84,168.74,70.0]
[1729606632642,0.6262297,168.84,168.74,70.0]
[1729606632829,0.6262297,168.84,168.75,23.776884]
[1729606633230,0.6262297,168.84,168.77,93.776884]
[1729606633444,0.6262297,168.84,168.79,70.0]
[1729606633652,0.6262297,168.84,168.8,23.776884]
[1729606634237,0.6262297,168.84,168.81,70.0]
[1729606634543,0.08349036,168.89,168.81,70.0]
[1729606634544,0.08349036,168.89,168.86,70.0]
[1729606634738,0.08349036,168.89,168.84,43.776884]
[1729606635054,0.08349036,168.89,168.88,93.776884]
[1729606635226,0.08349036,168.89,168.84,90.0]
[1729606635654,0.08349036,168.89,168.84,93.776884]
[1729606636241,0.08349036,168.89,168.83,26.98015838]
[1729606636463,5.9221,168.86,168.76,15.0801]
[1729606636642,0.08349036,168.89,168.74,26.98015838]
[1729606636841,6.4862,168.88,168.75,1.48175681]
[1729606637046,5.9231,168.83,168.73,6.2467]
[1729606637254,14.906,168.85,168.74,1.48192705]
[1729606637457,23.776884,168.87,168.68,18.38]
[1729606637458,23.2316,168.8,168.68,18.38]
[1729606637769,5.9245,168.79,168.66,70.0]
[1729606637967,5.9267,168.73,168.67,1.48247033]
[1729606638146,34.8116,168.79,168.64,70.0]
[1729606638464,34.8116,168.79,168.65,1.48265653]
[1729606638838,5.9259,168.75,168.65,1.48265653]
[1729606639237,5.9252,168.77,168.66,93.776884]
[1729606639633,20.0,168.79,168.63,70.0]
[1729606639946,5.9263,168.74,168.64,1.48265956]
[1729606640159,5.9263,168.74,168.62,26.98015838]
[1729606640362,6.2634,168.85,168.69,70.0]
[1729606640535,6.2634,168.85,168.71,70.0]
[1729606640739,6.2634,168.85,168.71,96.98015838]
[1729606641040,6.2634,168.85,168.72,23.776884]
[1729606641244,12.1859,168.85,168.73,70.0]
[1729606641556,5.9235,168.82,168.72,23.776884]
[1729606641773,5.9243,168.8,168.71,15.2768]
[1729606641971,6.2634,168.85,168.71,15.2768]
[1729606642145,5.9247,168.79,168.69,70.0]
[1729606642347,5.9254,168.77,168.67,76.4316]
[1729606642655,5.9248,168.78,168.68,23.776884]
[1729606643349,6.2634,168.85,168.73,70.0]
[1729606643546,5.9206,168.9,168.78,70.0]
[1729606643763,5.9206,168.9,168.79,23.776884]
[1729606644464,11.9225,168.91,168.79,23.776884]
[1729606644770,6.0022,168.91,168.8,70.0]
[1729606645270,6.0022,168.91,168.81,23.776884]
[1729606645487,16.5879,168.93,168.81,23.776884]
[1729606645775,22.5076,168.93,168.83,70.0]
[1729606646147,5.9203,168.92,168.81,70.0]
[1729606646563,5.9198,168.93,168.82,46.98015838]
[1729606646975,6.1449,168.96,168.8,20.0]
[1729606647170,5.9209,168.9,168.8,20.0]
[1729606647352,6.1449,168.96,168.82,70.0]
[1729606647551,6.1449,168.96,168.8,90.0]
[1729606647774,0.1,168.94,168.77,6.0927]
[1729606647952,14.799,168.93,168.77,6.0927]
[1729606648158,5.9209,168.9,168.77,70.0]
[1729606648654,5.9219,168.87,168.76,15.5557]
[1729606648858,5.9223,168.86,168.76,15.5557]
[1729606649061,20.0,168.91,168.73,7.99151969]
[1729606649382,20.0,168.91,168.74,71.48188878]
[1729606649383,14.8016,168.9,168.74,71.48188878]
[1729606649575,5.9227,168.85,168.74,70.0]
[1729606650565,22.1077,168.92,168.79,26.98015838]
[1729606650782,5.9191,168.95,168.83,70.0]
[1729606650966,6.1449,168.96,168.82,26.98015838]
[1729606651281,5.9203,168.91,168.8,20.0]
[1729606651456,6.1449,168.96,168.8,20.0]
[1729606651457,5.9207,168.9,168.8,20.0]
[1729606651858,5.9207,168.9,168.79,96.98015838]
[1729606652063,6.1449,168.96,168.81,76.1465]
[1729606652258,6.1449,168.96,168.85,20.0]
[1729606652560,6.1449,168.96,168.83,70.0]
[1729606652780,12.0636,168.96,168.83,70.0]
[1729606653056,6.1449,168.96,168.85,70.0]
[1729606653287,5.9185,168.96,168.85,70.0]
[1729606653779,0.08349036,168.93,168.85,70.0]
[1729606654166,0.08349036,168.93,168.88,70.0]
[1729606655265,0.08349036,168.93,168.89,23.776884]
[1729606655677,0.08349036,168.93,168.89,70.0]
[1729606655888,0.08349036,168.93,168.9,23.776884]
[1729606656093,0.08349036,168.93,168.92,93.776884]
[1729606656586,0.08349036,168.93,168.91,23.776884]
[1729606656789,0.08349036,168.93,168.88,1.18340278]
[1729606656790,0.08349036,168.93,168.89,20.0]
[1729606657000,0.08349036,168.93,168.92,93.776884]
[1729606657488,0.08349036,168.93,168.88,1.18357159]
[1729606657489,0.08349036,168.93,168.9,70.0]
[1729606657676,0.08349036,168.93,168.91,23.776884]
[1729606658269,0.08349036,168.93,168.9,70.0]
[1729606658681,0.08349036,168.93,168.92,70.0]
[1729606658862,0.08349036,168.93,168.92,93.776884]
[1729606661294,0.08349036,168.93,168.91,26.98015838]
[1729606661481,0.08349036,168.93,168.88,96.98015838]
[1729606661680,0.08349036,168.93,168.9,70.0]
[1729606664098,0.08349036,168.93,168.92,70.0]
[1729606664291,0.08349036,168.93,168.89,20.0]
[1729606664593,0.08349036,168.93,168.92,70.0]
[1729606665371,0.06,169.0,168.97,70.0]
[1729606665688,0.50042442,169.18,169.09,70.0]
[1729606665992,0.50042442,169.18,169.03,0.1]
[1729606665993,0.50042442,169.18,169.08,23.776884]
[1729606666301,5.9131,169.12,169.04,70.0]
[1729606666471,5.9136,169.1,169.03,22.9335]
[1729606666674,0.1,169.16,169.0,70.0]
[1729606666899,5.9122,169.14,169.0,23.776884]
[1729606667092,5.9143,169.08,169.0,23.776884]
[1729606667397,0.1,169.15,169.0,93.776884]
[1729606667578,5.9145,169.08,168.99,26.98015838]
[1729606667780,5.915,169.06,168.97,21.7263]
[1729606667976,5.9154,169.05,168.97,15.4959]
[1729606668197,0.1,169.11,168.96,96.98015838]
[1729606668396,5.9158,169.04,168.96,26.98015838]
[1729606668576,5.9158,169.04,168.94,70.0]
[1729606668577,5.9165,169.02,168.93,26.98015838]
[1729606668972,6.3663,169.06,168.95,70.0]
[1729606669187,12.2813,169.06,168.96,26.98015838]
[1729606669599,20.9955,169.12,168.98,70.0]
[1729606669801,6.1129,169.12,168.98,70.0]
[1729606670003,6.1129,169.12,169.0,70.0]
[1729606670491,5.9133,169.11,169.02,70.0]
[1729606670692,12.0259,169.12,169.02,70.0]
[1729606670899,6.1129,169.12,169.0,70.0]
[1729606671102,5.9138,169.1,169.0,70.0]
[1729606671406,6.1129,169.12,169.03,70.0]
[1729606673213,6.1129,169.12,168.99,96.98015838]
[1729606673399,6.1129,169.12,169.0,20.0]
[1729606673594,6.1129,169.12,169.01,70.0]
[1729606673911,6.1129,169.12,169.02,23.776884]
[1729606674711,6.1129,169.12,169.01,96.98015838]
[1729606674913,5.9137,169.1,169.01,26.98015838]
[1729606675096,14.7797,169.15,169.01,26.98015838]
[1729606675446,6.27578197,169.16,168.97,70.0]
[1729606675447,14.7841,169.1,168.97,70.0]
[1729606675717,5.9144,169.08,168.98,26.98015838]
[1729606675929,6.4622,169.14,169.01,70.0]
[1729606675930,5.9129,169.12,169.01,70.0]
[1729606676091,5.9147,169.07,168.98,26.98015838]
[1729606676499,0.1,169.13,168.98,26.98015838]
[1729606676712,6.4622,169.14,168.99,26.98015838]
[1729606676916,12.3746,169.14,169.05,26.98015838]
[1729606677503,5.913,169.12,169.05,26.98015838]
[1729606679019,5.9149,169.07,169.0,14.68]
[1729606679223,0.1,169.08,169.0,14.68]
[1729606679523,5.9168,169.01,169.0,14.68]
[1729606679825,5.9173,169.0,168.92,26.98015838]
[1729606680011,6.1531,169.02,168.9,70.0]
[1729606680325,5.9203,168.91,168.85,35.87005745]
[1729606680624,0.1,168.92,168.77,70.0]
[1729606680825,0.1,168.92,168.75,16.37780528]
[1729606680826,6.1435,168.89,168.75,16.37780528]
[1729606681028,5.9231,168.83,168.75,0.12580528]
[1729606681201,0.1,168.87,168.75,0.12580528]
[1729606681523,20.9468,168.89,168.75,0.12580528]
[1729606681700,5.9221,168.86,168.75,0.12580528]
[1729606681896,6.1435,168.89,168.76,70.0]
[1729606682103,12.0645,168.89,168.76,70.0]
[1729606682299,6.18470856,168.96,168.87,70.0]
[1729606682599,6.1435,169.06,168.91,70.0]
[1729606682816,6.1435,169.06,168.84,6.6724]
[1729606682817,5.9163,169.03,168.89,70.0]
[1729606683018,5.9163,169.03,168.91,70.0]
[1729606683205,5.9168,169.01,168.88,70.0]
[1729606683411,0.1,169.04,168.88,70.0]
[1729606683721,12.32233959,169.06,168.9,70.0]
[1729606683916,0.1,169.04,168.89,20.0]
[1729606684104,5.9175,168.99,168.81,70.0]
[1729606684301,29.5781,169.05,168.8,60.25816868]
[1729606684302,0.2,168.97,168.8,16.4918]
[1729606684512,0.1,168.96,168.79,70.0]
[1729606684902,6.0189,168.95,168.77,119.80276868]
[1729606685101,0.1,168.9,168.75,70.12580528]
[1729606685324,5.9235,168.82,168.75,0.12580528]
[1729606685704,0.1,168.86,168.75,0.12580528]
[1729606685908,5.9241,168.81,168.75,0.12580528]
[1729606686317,5.925,168.78,168.75,0.12580528]
[1729606686628,5.9255,168.77,168.75,0.12580528]
[1729606687325,0.1,168.72,168.58,0.6262297]
[1729606687526,0.1,168.68,168.58,0.6262297]
[1729606687825,20.0,168.65,168.58,0.6262297]
[1729606688029,20.1,168.65,168.58,0.6262297]
[1729606688206,5.9314,168.6,168.58,0.6262297]
[1729606688408,20.1,168.59,168.58,0.6262297]
[1729606688613,20.1,168.59,168.42,44.39259838]
[1729606688614,0.1,168.57,168.42,0.6262297]
[1729606688933,0.1,168.62,168.42,50.57817401]
[1729606689127,5.9324,168.57,168.43,70.0]
[1729606689431,5.932,168.58,168.43,78.07661917]
[1729606689729,0.1,168.57,168.43,8.07661917]
[1729606689932,47.4728,168.68,168.42,0.6262297]
[1729606689933,20.1,168.58,168.42,0.6262297]
[1729606690107,5.9334,168.54,168.42,0.6262297]
[1729606690303,0.2,168.54,168.42,0.6262297]
[1729606690536,20.0,168.54,168.42,0.6262297]
[1729606691320,20.2,168.54,168.42,0.6262297]
[1729606691713,0.2,168.55,168.42,0.6262297]
[1729606692039,5.9344,168.51,168.42,0.6262297]
[1729606692209,0.1,168.57,168.42,0.6262297]
[1729606692410,5.9327,168.56,168.42,70.6262297]
[1729606692606,5.9327,168.56,168.42,114.39259838]
[1729606692829,5.9327,168.56,168.43,8.07661917]
[1729606693022,5.9327,168.56,168.44,70.0]
[1729606693222,5.9317,168.59,168.45,23.776884]
[1729606693539,0.2,168.63,168.45,23.776884]
[1729606693540,0.1,168.63,168.46,70.0]
[1729606693714,14.8247,168.64,168.47,23.776884]
[1729606693914,6.6002,168.66,168.5,70.0]
[1729606694112,31.1398,168.69,168.49,23.776884]
[1729606694113,16.3192,168.69,168.54,113.76636868]
[1729606694322,0.2,168.66,168.47,7.3275101]
[1729606694627,16.3192,168.69,168.44,70.0]
[1729606694628,0.1,168.61,168.44,70.0]
[1729606694944,0.1,168.61,168.43,70.0]
[1729606695109,5.9324,168.57,168.43,70.0]
[1729606695312,0.2,168.6,168.42,0.6262297]
[1729606695523,0.2,168.63,168.44,70.0]
[1729606695830,5.9316,168.59,168.46,70.0]
[1729606696033,0.1,168.63,168.44,43.76636868]
[1729606696243,5.9328,168.56,168.43,70.0]
[1729606696407,5.9328,168.56,168.45,70.0]
[1729606696609,5.9328,168.56,168.43,70.0]
[1729606696827,5.9328,168.56,168.45,70.0]
[1729606697427,23.876884,168.63,168.45,70.0]
[1729606697640,31.1399,168.69,168.5,70.0]
[1729606697816,5.9316,168.59,168.49,43.76636868]
[1729606698141,0.2,168.66,168.47,70.0]
[1729606698142,5.9321,168.58,168.47,23.776884]
[1729606698315,5.9321,168.58,168.47,93.776884]
[1729606698510,5.9309,168.61,168.49,70.0]
[1729606698818,14.9227,168.66,168.49,70.0]
[1729606699224,0.1,168.65,168.49,70.0]
[1729606699417,5.9318,168.59,168.47,23.776884]
[1729606699621,5.9328,168.56,168.43,70.0]
[1729606699839,5.9328,168.56,168.45,70.0]
[1729606700134,20.0,168.61,168.44,43.76636868]
[1729606700338,20.0,168.61,168.43,70.0]
[1729606700542,20.2,168.64,168.45,70.0]
[1729606700724,0.1,168.62,168.45,70.0]
[1729606700915,5.9323,168.57,168.45,70.0]
[1729606701112,5.9335,168.54,168.42,20.6262297]
[1729606701431,5.9355,168.48,168.42,0.6262297]
[1729606701617,5.9335,168.54,168.42,0.6262297]
[1729606701827,20.0,168.58,168.42,0.6262297]
[1729606701828,20.1,168.58,168.42,0.6262297]
[1729606702043,5.934,168.53,168.42,0.6262297]
[1729606703144,5.934,168.53,168.42,114.39259838]
[1729606703347,20.0,168.56,168.42,114.39259838]
[1729606703348,21.3867,168.59,168.43,23.776884]
[1729606703540,14.8253,168.63,168.46,70.0]
[1729606703842,6.4674,168.66,168.48,43.76636868]
[1729606703843,5.9316,168.59,168.48,43.76636868]
[1729606704046,5.9319,168.58,168.48,43.76636868]
[1729606704644,0.1,168.63,168.48,43.76636868]
[1729606704645,5.9322,168.57,168.48,43.76636868]
[1729606705328,20.0,168.61,168.45,43.76636868]
[1729606705526,5.9333,168.54,168.45,43.76636868]
[1729606705743,34.8288,168.59,168.43,70.0]
[1729606705951,34.8288,168.59,168.42,44.39259838]
[1729606706248,5.9333,168.54,168.42,44.39259838]
[1729606706745,25.9371,168.43,168.42,0.6262297]
[1729606707055,5.9371,168.43,168.42,0.6262297]
[1729606707955,18.03,168.5,168.42,0.6262297]
[1729606707956,5.9369,168.44,168.42,0.6262297]
[1729606708248,5.9362,168.46,168.42,0.6262297]
[1729606708430,20.0,168.49,168.42,0.6262297]
[1729606708954,5.9369,168.44,168.42,0.6262297]
[1729606709834,5.9364,168.46,168.42,0.6262297]
[1729606710038,14.836,168.51,168.42,0.6262297]
[1729606710256,22.6732,168.53,168.42,0.6262297]
[1729606710438,5.9343,168.51,168.42,0.6262297]
[1729606710640,14.8367,168.5,168.42,0.6262297]
[1729606710847,5.9366,168.45,168.42,0.6262297]
[1729606711466,5.9368,168.44,168.42,0.6262297]
[1729606712764,5.9371,168.43,168.42,0.6262297]
[1729606712951,5.9368,168.44,168.42,0.6262297]
[1729606713265,5.9371,168.43,168.42,0.6262297]